[Event "82nd Tata Steel Qualifiers 2020"]
[Site "Wijk aan Zee"]
[Date "2020.01.24"]
[Round "7.5"]
[White "Van Dael, Siem"]
[Black "Suleymanli, Aydin"]
[Result "0-1"]
[ECO "C18"]
[WhiteElo "2252"]
[BlackElo "2473"]
[Annotator "ChessBase"]
[PlyCount "100"]
[EventDate "2020.01.18"]
[EventCountry "NED"]
[SourceTitle "playchess.com"]
[Source "ChessBase"]
[SourceQuality "1"]
[TimeControl "40/6000+30:20/3000+30:900+30"]

1. e4 {[%emt 0:00:00]} e6 {[%emt 0:00:00]} 2. d4 {[%emt 0:00:00]} d5 {[%emt 0:00:00]} 3. Nc3 {[%emt 0:00:00]} Bb4 {[%emt 0:00:00]} 4. e5 {[%emt 0:00:00]} c5 {[%emt 0:00:00]} 5. a3 {[%emt 0:00:00]} Ba5 {[%emt 0:00:00]} 6. b4 {[%emt 0:02:37]} cxd4 {[%emt 0:00:05]} 7. Nb5 {[%emt 0:00:20]} Bc7 {[%emt 0:00:06]} 8. f4 {[%emt 0:00:28]} Bd7 {[%emt 0:00:07]} 9. Nxd4 {[%emt 0:03:00]} Nc6 {[%emt 0:01:20]} 10. Ngf3 {[%emt 0:00:31]} Nxd4 {[%emt 0:02:42]} 11. Nxd4 {[%emt 0:01:35]} Bb6 {[%emt 0:01:42]} 12. Be3 {[%emt 0:08:43]} Qc7 {[%emt 0:04:30]} 13. Qd2 {[%emt 0:01:39]} Nh6 {[%emt 0:31:11]} 14. Be2 {[%emt 0:12:49]} Rc8 {[%emt 0:02:27]} 15. O-O {[%emt 0:03:32]} Qc3 {[%emt 0:01:16]} 16. Qxc3 {[%emt 0:18:14]} Rxc3 {[%emt 0:00:04]} 17. Bf2 {[%emt 0:00:11]} O-O {[%emt 0:08:42]} 18. h3 {[%emt 0:04:52]} f6 {[%emt 0:05:32]} 19. Bb5 {[%emt 0:03:21]} Bxd4 {[%emt 0:05:36]} 20. Bxd4 {[%emt 0:07:42]} Bxb5 {[%emt 0:00:54]} 21. Bxc3 {[%emt 0:00:10]} Bxf1 {[%emt 0:00:34]} 22. Rxf1 {[%emt 0:01:12]} Rc8 {[%emt 0:09:54]} 23. Rf3 {[%emt 0:13:45]} fxe5 {[%emt 0:00:44]} 24. fxe5 {[%emt 0:00:07]} Rc4 {[%emt 0:02:02]} 25. Rd3 {[%emt 0:03:22]} b6 {[%emt 0:02:16]} 26. Kf2 {[%emt 0:01:22]} Nf7 {[%emt 0:00:13]} 27. Ke2 {[%emt 0:01:04]} Ng5 {[%emt 0:01:22]} 28. Kd1 {[%emt 0:00:15]} Kf7 {[%emt 0:00:56]} 29. Bd4 {[%emt 0:01:29]} Ne4 {[%emt 0:03:17]} 30. Rf3+ {[%emt 0:01:55]} Ke8 {[%emt 0:00:58]} 31. c3 {[%emt 0:00:23]} h5 {[%emt 0:09:31]} 32. g3 {[%emt 0:07:55]} Ng5 {[%emt 0:03:13]} 33. Rf4 {[%emt 0:00:10]} Ne4 {[%emt 0:00:56]} 34. Rf3 {[%emt 0:00:39]} a5 {[%emt 0:06:23]} 35. Kc2 {[%emt 0:03:46]} b5 {[%emt 0:00:17]} 36. bxa5 {[%emt 0:01:27]} Ra4 {[%emt 0:00:04]} 37. Bb6 {[%emt 0:03:42]} Rxa3 {[%emt 0:00:11]} 38. Re3 {[%emt 0:01:24]} Ra2+ {[%emt 0:02:19]} 39. Kb3 {[%emt 0:01:47]} Ra4 {[%emt 0:00:10]} 40. Rd3 {[%emt 0:00:30]} Kd7 {[%emt 0:02:19]} 41. Kb2 {[%emt 0:16:06]} Kc6 {[%emt 0:17:04]} 42. Rd4 {[%emt 0:03:52]} Nxg3 {[%emt 0:06:29]} 43. Rxa4 {[%emt 0:02:33]} bxa4 {[%emt 0:00:04]} 44. Bd8 {[%emt 0:12:24]} Kb5 {[%emt 0:00:16]} 45. Ka3 {[%emt 0:00:49]} Ne4 {[%emt 0:00:17]} 46. c4+ {[%emt 0:02:35]} dxc4 {[%emt 0:00:12]} 47. a6 {[%emt 0:00:15]} Kxa6 {[%emt 0:00:05]} 48. Kxa4 {[%emt 0:00:46]} c3 {[%emt 0:00:07]} 49. Kb3 {[%emt 0:00:05]} Kb5 {[%emt 0:00:10]} 50. Be7 {[%emt 0:00:06]} g5 {[%emt 0:00:08]} 0-1

[Event "82nd Tata Steel Qualifiers 2020"]
[Site "Wijk aan Zee"]
[Date "2020.01.25"]
[Round "8.1"]
[White "Zwirs, Nico"]
[Black "Beerdsen, Thomas"]
[Result "1-0"]
[ECO "B94"]
[WhiteElo "2418"]
[BlackElo "2495"]
[Annotator "ChessBase"]
[PlyCount "121"]
[EventDate "2020.01.18"]
[EventCountry "NED"]
[SourceTitle "playchess.com"]
[Source "ChessBase"]
[SourceQuality "1"]
[TimeControl "40/6000+30:20/3000+30:900+30"]

1. e4 {[%emt 0:00:00]} c5 {[%emt 0:00:00]} 2. Nf3 {[%emt 0:00:00]} d6 {[%emt 0:00:00]} 3. d4 {[%emt 0:01:24]} cxd4 {[%emt 0:00:00]} 4. Nxd4 {[%emt 0:00:05]} Nf6 {[%emt 0:00:00]} 5. Nc3 {[%emt 0:00:54]} a6 {[%emt 0:00:00]} 6. Bg5 {[%emt 0:05:56]} Nbd7 {[%emt 0:00:42]} 7. f4 {[%emt 0:03:05]} Qa5 {[%emt 0:03:48]} 8. Qd3 {[%emt 0:04:12]} e6 {[%emt 0:10:09]} 9. O-O-O {[%emt 0:05:13]} Be7 {[%emt 0:03:45]} 10. Be2 {[%emt 0:07:37]} h6 {[%emt 0:06:23]} 11. Bxf6 {[%emt 0:08:51]} Nc5 {[%emt 0:04:28]} 12. Qd2 {[%emt 0:21:09]} Bxf6 {[%emt 0:00:37]} 13. Kb1 {[%emt 0:00:03]} O-O {[%emt 0:07:13]} 14. Bf3 {[%emt 0:06:17]} Bd7 {[%emt 0:08:37]} 15. Nd5 {[%emt 0:04:10]} Bd8 {[%emt 0:02:46]} 16. Qxa5 {[%emt 0:02:01]} Bxa5 {[%emt 0:00:08]} 17. Ne3 {[%emt 0:01:03]} Rfd8 {[%emt 0:05:26]} 18. c3 {[%emt 0:10:29]} Bc7 {[%emt 0:02:15]} 19. g3 {[%emt 0:01:02]} Rab8 {[%emt 0:06:24]} 20. Rd2 {[%emt 0:11:02]} b5 {[%emt 0:03:02]} 21. Rhd1 {[%emt 0:01:43]} a5 {[%emt 0:05:13]} 22. b3 {[%emt 0:00:31]} Rdc8 {[%emt 0:01:21]} 23. h4 {[%emt 0:06:59]} Bd8 {[%emt 0:02:10]} 24. h5 {[%emt 0:00:01]} Bf6 {[%emt 0:02:24]} 25. Ng4 {[%emt 0:01:13]} Be7 {[%emt 0:00:52]} 26. Nf2 {[%emt 0:00:55]} b4 {[%emt 0:02:47]} 27. c4 {[%emt 0:01:17]} Bf6 {[%emt 0:18:44]} 28. Ne2 {[%emt 0:02:36]} a4 {[%emt 0:03:08]} 29. Nc1 {[%emt 0:00:07]} axb3 {[%emt 0:01:47]} 30. axb3 {[%emt 0:00:01]} Bc3 {[%emt 0:02:08]} 31. Rxd6 {[%emt 0:00:15]} Bc6 {[%emt 0:01:00]} 32. Kc2 {[%emt 0:01:53]} e5 {[%emt 0:01:16]} 33. Ne2 {[%emt 0:01:20]} Ra8 {[%emt 0:01:00]} 34. Nxc3 {[%emt 0:00:23]} bxc3 {[%emt 0:00:04]} 35. Kxc3 {[%emt 0:01:07]} Nxb3 {[%emt 0:01:13]} 36. fxe5 {[%emt 0:01:39]} Nc5 {[%emt 0:01:12]} 37. Bg4 {[%emt 0:00:13]} Rcb8 {[%emt 0:03:32]} 38. Rxc6 {[%emt 0:00:58]} Ra3+ {[%emt 0:00:05]} 39. Kd2 {[%emt 0:00:35]} Rb2+ {[%emt 0:00:44]} 40. Ke1 {[%emt 0:00:04]} Rxg3 {[%emt 0:00:31]} 41. Rd8+ {[%emt 0:12:41]} Kh7 {[%emt 0:10:04]} 42. Bf5+ {[%emt 0:00:06]} g6 {[%emt 0:00:04]} 43. hxg6+ {[%emt 0:01:41]} Kg7 {[%emt 0:00:18]} 44. Rd2 {[%emt 0:02:26]} Rb1+ {[%emt 0:01:11]} 45. Ke2 {[%emt 0:17:54]} Nb3 {[%emt 0:01:23]} 46. Rc7 {[%emt 0:03:32]} Nxd2 {[%emt 0:07:10]} 47. Rxf7+ {[%emt 0:00:29]} Kg8 {[%emt 0:05:04]} 48. Be6 {[%emt 0:00:16]} Rxg6 {[%emt 0:00:44]} 49. Rf6+ {[%emt 0:00:15]} Kg7 {[%emt 0:00:05]} 50. Rxg6+ {[%emt 0:00:05]} Kxg6 {[%emt 0:00:04]} 51. Kxd2 {[%emt 0:00:09]} Rb2+ {[%emt 0:01:32]} 52. Ke3 {[%emt 0:00:17]} Rc2 {[%emt 0:00:09]} 53. Nh3 {[%emt 0:01:04]} Kg7 {[%emt 0:00:38]} 54. Nf4 {[%emt 0:00:33]} Kf8 {[%emt 0:00:17]} 55. Ng6+ {[%emt 0:02:20]} Kg7 {[%emt 0:00:06]} 56. Nh4 {[%emt 0:00:41]} h5 {[%emt 0:00:31]} 57. Kf4 {[%emt 0:00:56]} Kh6 {[%emt 0:00:22]} 58. Bd5 {[%emt 0:01:14]} Rf2+ {[%emt 0:00:10]} 59. Kg3 {[%emt 0:00:44]} Rf8 {[%emt 0:00:24]} 60. e6 {[%emt 0:00:16]} Rg8+ {[%emt 0:00:41]} 61. Kh3 {[%emt 0:15:20]} 1-0

[Event "82nd Tata Steel Qualifiers 2020"]
[Site "Wijk aan Zee"]
[Date "2020.01.25"]
[Round "8.2"]
[White "Pijpers, Arthur"]
[Black "Vogel, Roven"]
[Result "1/2-1/2"]
[ECO "B69"]
[WhiteElo "2480"]
[BlackElo "2465"]
[Annotator "ChessBase"]
[PlyCount "119"]
[EventDate "2020.01.18"]
[EventCountry "NED"]
[SourceTitle "playchess.com"]
[Source "ChessBase"]
[SourceQuality "1"]
[TimeControl "40/6000+30:20/3000+30:900+30"]

1. e4 {[%emt 0:00:00]} c5 {[%emt 0:00:00]} 2. Nc3 {[%emt 0:00:00]} Nc6 {[%emt 0:00:06]} 3. Nge2 {[%emt 0:00:00]} d6 {[%emt 0:00:23]} 4. d4 {[%emt 0:00:00]} cxd4 {[%emt 0:00:09]} 5. Nxd4 {[%emt 0:00:00]} Nf6 {[%emt 0:00:13]} 6. Bg5 {[%emt 0:00:00]} e6 {[%emt 0:00:13]} 7. Qd2 {[%emt 0:00:00]} a6 {[%emt 0:00:09]} 8. O-O-O {[%emt 0:00:04]} Bd7 {[%emt 0:00:09]} 9. f4 {[%emt 0:00:06]} Be7 {[%emt 0:00:29]} 10. Nf3 {[%emt 0:00:08]} b5 {[%emt 0:00:31]} 11. Bxf6 {[%emt 0:00:07]} gxf6 {[%emt 0:00:12]} 12. Kb1 {[%emt 0:00:39]} b4 {[%emt 0:00:45]} 13. Ne2 {[%emt 0:02:23]} h5 {[%emt 0:00:09]} 14. f5 {[%emt 0:08:56]} e5 {[%emt 0:00:23]} 15. Nc1 {[%emt 0:00:33]} Qb6 {[%emt 0:04:31]} 16. Bc4 {[%emt 0:01:06]} Na5 {[%emt 0:00:48]} 17. Qd5 {[%emt 0:08:32]} Nxc4 {[%emt 0:00:12]} 18. Qxa8+ {[%emt 0:02:01]} Bd8 {[%emt 0:00:09]} 19. Qd5 {[%emt 0:02:33]} Ne3 {[%emt 0:00:42]} 20. Qxd6 {[%emt 0:01:38]} Nxd1 {[%emt 0:01:11]} 21. Rxd1 {[%emt 0:00:18]} Qxd6 {[%emt 0:04:24]} 22. Rxd6 {[%emt 0:00:05]} Bb5 {[%emt 0:03:12]} 23. Nd3 {[%emt 0:11:06]} a5 {[%emt 0:15:03]} 24. Nf2 {[%emt 0:31:21]} Rg8 {[%emt 0:02:28]} 25. g3 {[%emt 0:00:14]} Ke7 {[%emt 0:00:40]} 26. Rd5 {[%emt 0:03:45]} Bc6 {[%emt 0:01:48]} 27. Rd2 {[%emt 0:01:07]} Bb6 {[%emt 0:00:34]} 28. Re2 {[%emt 0:04:53]} Bxf2 {[%emt 0:02:22]} 29. Rxf2 {[%emt 0:00:04]} Bxe4 {[%emt 0:00:19]} 30. Nd2 {[%emt 0:01:05]} Bd5 {[%emt 0:01:34]} 31. Nf1 {[%emt 0:04:04]} Kd6 {[%emt 0:20:28]} 32. Ne3 {[%emt 0:01:34]} Kc5 {[%emt 0:00:12]} 33. Kc1 {[%emt 0:14:55]} Kd4 {[%emt 0:04:11]} 34. Kd2 {[%emt 0:00:05]} Bxa2 {[%emt 0:03:24]} 35. b3 {[%emt 0:00:07]} a4 {[%emt 0:00:53]} 36. bxa4 {[%emt 0:03:17]} Ra8 {[%emt 0:00:58]} 37. h4 {[%emt 0:08:41]} Rxa4 {[%emt 0:08:31]} 38. g4 {[%emt 0:00:20]} b3 {[%emt 0:09:34]} 39. cxb3 {[%emt 0:00:11]} Bxb3 {[%emt 0:00:08]} 40. gxh5 {[%emt 0:02:04]} Ra2+ {[%emt 0:05:11]} 41. Ke1 {[%emt 0:50:04]} Ra8 {[%emt 0:50:10]} 42. Ng4 {[%emt 0:00:00]} Ra1+ {[%emt 0:00:00]} 43. Kd2 {[%emt 0:00:00]} Rd1+ {[%emt 0:00:00]} 44. Ke2 {[%emt 0:00:00]} Rh1 {[%emt 0:00:00]} 45. Rh2 {[%emt 0:00:00]} Ra1 {[%emt 0:00:00]} 46. Kf2 {[%emt 0:00:00]} Bd1 {[%emt 0:03:41]} 47. Nxf6 {[%emt 0:00:00]} Ra6 {[%emt 0:01:27]} 48. Rh1 {[%emt 0:00:00]} Rxf6 {[%emt 0:04:18]} 49. Rxd1+ {[%emt 0:00:00]} Ke4 {[%emt 0:00:07]} 50. Kg3 {[%emt 0:00:00]} Kxf5 {[%emt 0:00:11]} 51. Rf1+ {[%emt 0:00:00]} Ke6 {[%emt 0:00:06]} 52. Ra1 {[%emt 0:00:00]} Ke7 {[%emt 0:01:36]} 53. Re1 {[%emt 0:06:02]} Rf5 {[%emt 0:01:56]} 54. h6 {[%emt 0:00:44]} Kf6 {[%emt 0:00:32]} 55. Kg4 {[%emt 0:01:11]} Rf4+ {[%emt 0:00:51]} 56. Kh5 {[%emt 0:00:32]} Rf5+ {[%emt 0:01:27]} 57. Kg4 {[%emt 0:00:04]} Kg6 {[%emt 0:00:18]} 58. h7 {[%emt 0:00:14]} Rf4+ {[%emt 0:00:16]} 59. Kg3 {[%emt 0:00:05]} Kxh7 {[%emt 0:00:05]} 60. Rxe5 {[%emt 0:00:04]} 1/2-1/2

[Event "82nd Tata Steel Qualifiers 2020"]
[Site "Wijk aan Zee"]
[Date "2020.01.26"]
[Round "9.1"]
[White "Vogel, Roven"]
[Black "Zwirs, Nico"]
[Result "1-0"]
[ECO "D43"]
[WhiteElo "2465"]
[BlackElo "2418"]
[Annotator "ChessBase"]
[PlyCount "111"]
[EventDate "2020.01.18"]
[EventCountry "NED"]
[SourceTitle "playchess.com"]
[Source "ChessBase"]
[SourceQuality "1"]
[TimeControl "40/6000+30:20/3000+30:900+30"]

1. d4 {[%emt 0:00:00]} d5 {[%emt 0:00:00]} 2. c4 {[%emt 0:00:00]} e6 {[%emt 0:00:00]} 3. Nf3 {[%emt 0:00:00]} Nf6 {[%emt 0:00:02]} 4. Nc3 {[%emt 0:00:04]} c6 {[%emt 0:00:39]} 5. Qd3 {[%emt 0:02:59]} dxc4 {[%emt 0:07:32]} 6. Qxc4 {[%emt 0:00:09]} b5 {[%emt 0:00:09]} 7. Qd3 {[%emt 0:00:53]} Nbd7 {[%emt 0:01:00]} 8. Bg5 {[%emt 0:06:51]} Be7 {[%emt 0:12:31]} 9. g3 {[%emt 0:08:46]} b4 {[%emt 0:06:25]} 10. Nb1 {[%emt 0:02:57]} c5 {[%emt 0:07:06]} 11. Bg2 {[%emt 0:00:29]} Bb7 {[%emt 0:01:16]} 12. Nbd2 {[%emt 0:01:36]} Rc8 {[%emt 0:05:12]} 13. O-O {[%emt 0:01:30]} O-O {[%emt 0:02:12]} 14. a3 {[%emt 0:05:56]} bxa3 {[%emt 0:25:00]} 15. bxa3 {[%emt 0:04:41]} cxd4 {[%emt 0:07:32]} 16. Qxd4 {[%emt 0:04:17]} h6 {[%emt 0:01:49]} 17. Be3 {[%emt 0:00:07]} Bc5 {[%emt 0:01:13]} 18. Qd3 {[%emt 0:01:12]} Nb6 {[%emt 0:04:04]} 19. Qxd8 {[%emt 0:06:51]} Rfxd8 {[%emt 0:00:23]} 20. Bxc5 {[%emt 0:00:09]} Rxc5 {[%emt 0:00:06]} 21. Rfc1 {[%emt 0:00:47]} Rxc1+ {[%emt 0:03:55]} 22. Rxc1 {[%emt 0:00:13]} Rc8 {[%emt 0:00:02]} 23. Rxc8+ {[%emt 0:00:55]} Nxc8 {[%emt 0:00:53]} 24. Ne5 {[%emt 0:00:58]} Bxg2 {[%emt 0:00:12]} 25. Kxg2 {[%emt 0:00:07]} Nd5 {[%emt 0:04:38]} 26. Kf3 {[%emt 0:01:43]} f6 {[%emt 0:01:03]} 27. Nec4 {[%emt 0:01:47]} Kf7 {[%emt 0:01:48]} 28. Ke4 {[%emt 0:00:38]} Ke7 {[%emt 0:01:12]} 29. Kd4 {[%emt 0:00:07]} Kd7 {[%emt 0:01:34]} 30. e4 {[%emt 0:00:50]} Ndb6 {[%emt 0:04:15]} 31. e5 {[%emt 0:01:58]} Kc6 {[%emt 0:04:34]} 32. exf6 {[%emt 0:03:51]} gxf6 {[%emt 0:00:05]} 33. Ne3 {[%emt 0:00:09]} Nd6 {[%emt 0:01:30]} 34. Ng4 {[%emt 0:00:46]} Nb5+ {[%emt 0:00:39]} 35. Kd3 {[%emt 0:00:31]} f5 {[%emt 0:00:38]} 36. Nxh6 {[%emt 0:00:24]} Nxa3 {[%emt 0:00:09]} 37. f3 {[%emt 0:01:25]} Kd6 {[%emt 0:02:58]} 38. g4 {[%emt 0:04:12]} Ke5 {[%emt 0:00:16]} 39. g5 {[%emt 0:00:44]} Nd5 {[%emt 0:00:16]} 40. Nf7+ {[%emt 0:02:46]} Kf4 {[%emt 0:00:07]} 41. g6 {[%emt 0:55:24]} Nf6 {[%emt 0:22:35]} 42. g7 {[%emt 0:00:00]} e5 {[%emt 0:03:07]} 43. h4 {[%emt 0:00:00]} e4+ {[%emt 0:06:43]} 44. fxe4 {[%emt 0:00:00]} fxe4+ {[%emt 0:00:04]} 45. Nxe4 {[%emt 0:00:00]} Ng8 {[%emt 0:00:05]} 46. Ng3 {[%emt 0:00:00]} Nb5 {[%emt 0:05:20]} 47. h5 {[%emt 0:00:00]} Nd6 {[%emt 0:00:24]} 48. h6 {[%emt 0:00:00]} Nxf7 {[%emt 0:00:28]} 49. h7 {[%emt 0:00:00]} Nfh6 {[%emt 0:00:03]} 50. Ne2+ {[%emt 0:00:00]} Kf5 {[%emt 0:00:41]} 51. h8=Q {[%emt 0:00:00]} Kg6 {[%emt 0:00:07]} 52. Nf4+ {[%emt 0:00:00]} Kg5 {[%emt 0:00:36]} 53. Nd5 {[%emt 0:00:00]} Kg6 {[%emt 0:00:08]} 54. Kc4 {[%emt 0:00:00]} Kf7 {[%emt 0:01:35]} 55. Qh7 {[%emt 0:00:00]} Ng4 {[%emt 0:00:20]} 56. Qh5+ {[%emt 0:00:00]} 1-0

[Event "82nd Tata Steel Qualifiers 2020"]
[Site "Wijk aan Zee"]
[Date "2020.01.26"]
[Round "9.2"]
[White "Akash G"]
[Black "Pijpers, Arthur"]
[Result "0-1"]
[ECO "C13"]
[WhiteElo "2461"]
[BlackElo "2480"]
[Annotator "ChessBase"]
[PlyCount "92"]
[EventDate "2020.01.18"]
[EventCountry "NED"]
[SourceTitle "playchess.com"]
[Source "ChessBase"]
[SourceQuality "1"]
[TimeControl "40/6000+30:20/3000+30:900+30"]

1. e4 {[%emt 0:06:21]} e6 {[%emt 0:00:00]} 2. d4 {[%emt 0:00:40]} d5 {[%emt 0:00:00]} 3. Nc3 {[%emt 0:00:06]} Nf6 {[%emt 0:00:00]} 4. Bg5 {[%emt 0:00:06]} dxe4 {[%emt 0:00:00]} 5. Nxe4 {[%emt 0:00:08]} Be7 {[%emt 0:00:00]} 6. Bxf6 {[%emt 0:00:32]} gxf6 {[%emt 0:00:00]} 7. Nf3 {[%emt 0:00:08]} f5 {[%emt 0:00:01]} 8. Nc3 {[%emt 0:00:22]} a6 {[%emt 0:00:06]} 9. g3 {[%emt 0:03:14]} b5 {[%emt 0:00:11]} 10. Bg2 {[%emt 0:00:07]} Bb7 {[%emt 0:00:04]} 11. O-O {[%emt 0:07:14]} c5 {[%emt 0:00:07]} 12. Qe1 {[%emt 0:09:09]} cxd4 {[%emt 0:06:53]} 13. Rd1 {[%emt 0:00:30]} Bxf3 {[%emt 0:06:05]} 14. Bxf3 {[%emt 0:00:33]} Ra7 {[%emt 0:00:03]} 15. Ne2 {[%emt 0:04:43]} Rd7 {[%emt 0:00:41]} 16. c3 {[%emt 0:01:40]} dxc3 {[%emt 0:02:09]} 17. Qxc3 {[%emt 0:06:25]} O-O {[%emt 0:08:35]} 18. Nf4 {[%emt 0:03:50]} Qc7 {[%emt 0:04:36]} 19. Qe3 {[%emt 0:03:15]} Qc5 {[%emt 0:09:57]} 20. Qe2 {[%emt 0:14:23]} Rfd8 {[%emt 0:05:17]} 21. Rc1 {[%emt 0:06:27]} Qb4 {[%emt 0:08:01]} 22. a3 {[%emt 0:04:55]} Qd2 {[%emt 0:03:59]} 23. Rfd1 {[%emt 0:02:33]} Qxe2 {[%emt 0:01:53]} 24. Bxe2 {[%emt 0:01:03]} Rxd1+ {[%emt 0:03:32]} 25. Rxd1 {[%emt 0:01:53]} Rxd1+ {[%emt 0:01:48]} 26. Bxd1 {[%emt 0:00:07]} Nc6 {[%emt 0:00:03]} 27. Kg2 {[%emt 0:10:21]} Kf8 {[%emt 0:13:58]} 28. a4 {[%emt 0:06:42]} bxa4 {[%emt 0:04:10]} 29. Bxa4 {[%emt 0:00:08]} Nb4 {[%emt 0:00:14]} 30. Bd1 {[%emt 0:02:44]} Bg5 {[%emt 0:05:00]} 31. Ne2 {[%emt 0:01:52]} Ke7 {[%emt 0:00:29]} 32. f4 {[%emt 0:01:57]} Bf6 {[%emt 0:00:04]} 33. b3 {[%emt 0:00:03]} Kd6 {[%emt 0:01:11]} 34. Kf3 {[%emt 0:00:53]} Nd5 {[%emt 0:03:27]} 35. h3 {[%emt 0:02:32]} h5 {[%emt 0:06:12]} 36. Nc1 {[%emt 0:02:29]} Kc5 {[%emt 0:00:31]} 37. Be2 {[%emt 0:00:55]} a5 {[%emt 0:00:15]} 38. Na2 {[%emt 0:00:53]} h4 {[%emt 0:03:18]} 39. g4 {[%emt 0:05:33]} fxg4+ {[%emt 0:01:19]} 40. Kxg4 {[%emt 0:01:54]} Be7 {[%emt 0:08:42]} 41. Kf3 {[%emt 0:14:55]} f5 {[%emt 0:14:12]} 42. Ba6 {[%emt 0:11:42]} Bd6 {[%emt 0:02:07]} 43. Nc1 {[%emt 0:00:24]} Nxf4 {[%emt 0:00:24]} 44. Nd3+ {[%emt 0:00:30]} Nxd3 {[%emt 0:00:06]} 45. Bxd3 {[%emt 0:00:04]} Kd4 {[%emt 0:01:08]} 46. Bb5 {[%emt 0:00:22]} e5 {[%emt 0:00:11]} 0-1

[Event "82nd Tata Steel Qualifiers 2020"]
[Site "Wijk aan Zee"]
[Date "2020.01.26"]
[Round "9.4"]
[White "Suleymanli, Aydin"]
[Black "De Boer, Eelke"]
[Result "1/2-1/2"]
[ECO "E62"]
[WhiteElo "2473"]
[BlackElo "2324"]
[Annotator "ChessBase"]
[PlyCount "135"]
[EventDate "2020.01.18"]
[EventCountry "NED"]
[SourceTitle "playchess.com"]
[Source "ChessBase"]
[SourceQuality "1"]
[TimeControl "40/6000+30:20/3000+30:900+30"]

1. d4 {[%emt 0:00:00]} Nf6 {[%emt 0:00:00]} 2. c4 {[%emt 0:00:00]} g6 {[%emt 0:00:00]} 3. g3 {[%emt 0:00:00]} Bg7 {[%emt 0:00:00]} 4. Bg2 {[%emt 0:00:00]} O-O {[%emt 0:00:00]} 5. Nc3 {[%emt 0:00:00]} d6 {[%emt 0:00:01]} 6. Nf3 {[%emt 0:00:00]} Nc6 {[%emt 0:00:07]} 7. O-O {[%emt 0:00:00]} e5 {[%emt 0:00:27]} 8. dxe5 {[%emt 0:01:36]} dxe5 {[%emt 0:01:03]} 9. Bg5 {[%emt 0:00:18]} Be6 {[%emt 0:00:07]} 10. Qa4 {[%emt 0:00:30]} Qc8 {[%emt 0:00:11]} 11. Rfd1 {[%emt 0:03:09]} Nd7 {[%emt 0:00:30]} 12. e4 {[%emt 0:36:46]} Nb6 {[%emt 0:03:05]} 13. Qc2 {[%emt 0:00:07]} Nxc4 {[%emt 0:00:22]} 14. Nd5 {[%emt 0:00:32]} Nb6 {[%emt 0:00:51]} 15. Rac1 {[%emt 0:04:52]} f6 {[%emt 0:06:18]} 16. Be3 {[%emt 0:01:23]} Rf7 {[%emt 0:00:50]} 17. b4 {[%emt 0:05:21]} Bf8 {[%emt 0:12:31]} 18. a3 {[%emt 0:03:21]} Bd6 {[%emt 0:08:15]} 19. Bxb6 {[%emt 0:04:59]} axb6 {[%emt 0:06:50]} 20. Nxb6 {[%emt 0:00:07]} cxb6 {[%emt 0:00:06]} 21. Rxd6 {[%emt 0:00:05]} b5 {[%emt 0:00:51]} 22. Qc3 {[%emt 0:14:45]} Bg4 {[%emt 0:13:28]} 23. Rd5 {[%emt 0:11:30]} Rd7 {[%emt 0:00:58]} 24. Rxb5 {[%emt 0:21:27]} Qd8 {[%emt 0:03:18]} 25. h3 {[%emt 0:00:36]} Be6 {[%emt 0:04:26]} 26. Bf1 {[%emt 0:00:06]} Na7 {[%emt 0:25:02]} 27. Rc5 {[%emt 0:00:41]} Rd1 {[%emt 0:04:00]} 28. Kg2 {[%emt 0:01:00]} b6 {[%emt 0:01:20]} 29. Rc7 {[%emt 0:00:48]} Rxf1 {[%emt 0:00:18]} 30. Rxa7 {[%emt 0:00:30]} Rxc1 {[%emt 0:04:01]} 31. Rxa8 {[%emt 0:00:02]} Qxa8 {[%emt 0:00:07]} 32. Qxc1 {[%emt 0:00:06]} Qxe4 {[%emt 0:00:23]} 33. Qe3 {[%emt 0:00:51]} Bd5 {[%emt 0:00:16]} 34. Qxe4 {[%emt 0:00:02]} Bxe4 {[%emt 0:00:09]} 35. g4 {[%emt 0:00:02]} f5 {[%emt 0:00:12]} 36. gxf5 {[%emt 0:00:02]} gxf5 {[%emt 0:00:13]} 37. Kg3 {[%emt 0:00:03]} f4+ {[%emt 0:00:12]} 38. Kg4 {[%emt 0:00:02]} h5+ {[%emt 0:00:29]} 39. Kxh5 {[%emt 0:00:07]} Bxf3+ {[%emt 0:00:17]} 40. Kg5 {[%emt 0:00:02]} Bg2 {[%emt 0:15:18]} 41. Kf5 {[%emt 0:50:38]} Bxh3+ {[%emt 0:15:11]} 42. Kxe5 {[%emt 0:00:00]} Bd7 {[%emt 0:00:37]} 43. Kxf4 {[%emt 0:00:00]} Kf7 {[%emt 0:00:11]} 44. Ke5 {[%emt 0:00:00]} Ba4 {[%emt 0:00:08]} 45. Kd6 {[%emt 0:00:00]} b5 {[%emt 0:00:06]} 46. Ke5 {[%emt 0:00:00]} Bc2 {[%emt 0:00:25]} 47. f4 {[%emt 0:00:00]} Ke7 {[%emt 0:00:38]} 48. Kd4 {[%emt 0:00:00]} Kf6 {[%emt 0:00:21]} 49. Kc3 {[%emt 0:00:00]} Ba4 {[%emt 0:04:06]} 50. Kd4 {[%emt 0:00:00]} Kf5 {[%emt 0:18:49]} 51. Ke3 {[%emt 0:00:00]} Bb3 {[%emt 0:00:15]} 52. Kf3 {[%emt 0:00:00]} Ke6 {[%emt 0:05:54]} 53. Ke4 {[%emt 0:00:00]} Kd6 {[%emt 0:00:16]} 54. Kd4 {[%emt 0:00:00]} Bc2 {[%emt 0:01:13]} 55. Kc3 {[%emt 0:00:00]} Bd1 {[%emt 0:00:05]} 56. Kd4 {[%emt 0:00:00]} Ke6 {[%emt 0:02:33]} 57. Ke4 {[%emt 0:00:00]} Bc2+ {[%emt 0:00:33]} 58. Kd4 {[%emt 0:00:00]} Kf5 {[%emt 0:00:09]} 59. Ke3 {[%emt 0:00:00]} Kg4 {[%emt 0:00:16]} 60. Kd2 {[%emt 0:00:00]} Bb3 {[%emt 0:00:05]} 61. Ke3 {[%emt 0:00:00]} Ba2 {[%emt 0:17:46]} 62. a4 {[%emt 0:00:00]} bxa4 {[%emt 0:00:04]} 63. Kd4 {[%emt 0:00:00]} Kxf4 {[%emt 0:00:07]} 64. Kc3 {[%emt 0:00:00]} a3 {[%emt 0:00:09]} 65. b5 {[%emt 0:00:00]} Bc4 {[%emt 0:00:10]} 66. Kc2 {[%emt 0:00:00]} Bd3+ {[%emt 0:00:20]} 67. Kb3 {[%emt 0:00:00]} Bxb5 {[%emt 0:00:05]} 68. Kxa3 {[%emt 0:00:00]} 1/2-1/2